bitfinex-derivatives/quotes_ETHF0:USTF0_20250807
["timestamp","ask_amount","ask_price","bid_price","bid_amount"]
[1754578490501,1.2822,3821.5,3821.4,0.6661]
[1754578490697,1.21816,3821.5,3821.0,0.0202]
[1754578491003,1.7096,3821.2,3821.1,1.1369]
[1754578491204,1.7096,3821.2,3820.8,0.3219]
[1754578491395,1.7096,3821.1,3821.0,0.84521]
[1754578491592,1.7096,3821.1,3821.0,1.13691]
[1754578491796,1.7096,3821.1,3821.0,1.18941]
[1754578491997,0.287,3821.1,3821.0,1.18941]
[1754578492600,0.9978,3821.5,3821.4,1.18936]
[1754578494904,1.2822,3821.5,3821.4,1.18936]
[1754578495103,1.7096,3821.5,3821.4,1.18936]
[1754578496002,1.7096,3821.5,3821.4,1.13686]
[1754578496305,1.7096,3821.1,3821.0,0.52332]
[1754578496803,1.0147,3822.9,3820.2,0.3421]
[1754578497004,0.6949,3821.4,3821.3,0.84517]
[1754578497203,1.2822,3821.4,3821.3,1.18937]
[1754578497404,0.9978,3821.4,3821.3,1.18937]
[1754578499611,1.7096,3821.4,3821.3,1.18937]
[1754578500212,1.7096,3821.4,3820.6,1.30841]
[1754578500213,0.6949,3821.4,3820.5,0.0202]
[1754578500415,0.9952,3820.6,3820.5,0.81508]
[1754578500610,1.7096,3820.6,3820.5,0.81508]
[1754578500808,1.7096,3820.6,3820.5,1.16928]
[1754578501013,1.7096,3820.6,3820.5,1.13698]
[1754578501319,1.7096,3820.6,3820.5,1.16928]
[1754578501619,1.7096,3820.6,3820.5,1.18948]
[1754578501914,0.287,3820.6,3820.5,1.18948]
[1754578502617,1.7096,3820.9,3820.8,1.18944]
[1754578502817,1.7096,3820.9,3820.8,1.16924]
[1754578503010,0.287,3820.9,3820.8,1.16924]
[1754578503211,1.7096,3820.9,3820.8,0.52334]
[1754578503616,1.7096,3820.9,3820.8,0.55564]
[1754578503816,1.7096,3820.9,3820.8,0.52334]
[1754578504415,1.2822,3820.9,3820.8,1.18944]
[1754578504814,1.7096,3820.9,3820.8,1.16924]
[1754578505218,1.7096,3820.9,3820.8,0.52334]
[1754578505418,0.8379,3821.3,3821.2,0.84729]
[1754578505719,1.4226,3821.3,3821.2,1.18939]
[1754578506217,1.7096,3821.3,3821.2,1.16919]
[1754578506520,1.7096,3821.3,3821.2,1.18939]
[1754578507122,1.7096,3821.3,3821.2,1.16919]
[1754578507621,0.287,3821.3,3821.2,1.18939]
[1754578508813,0.5873,3821.3,3821.2,1.18939]
[1754578509116,0.287,3821.3,3821.2,1.18939]
[1754578510424,0.4105,3821.7,3821.6,0.6661]
[1754578510625,0.9952,3821.7,3821.6,1.18934]
[1754578510825,1.4226,3821.7,3821.6,1.16914]
[1754578511018,1.7096,3821.7,3821.6,0.52324]
[1754578511215,1.2822,3821.7,3821.6,1.18934]
[1754578511919,1.7096,3821.7,3821.6,1.18934]
[1754578512626,0.6975,3821.7,3821.6,1.18934]
[1754578512822,1.4093,3821.7,3821.6,1.18934]
[1754578513027,1.4093,3821.7,3821.6,0.81494]
[1754578513326,1.7175,3821.7,3821.6,0.81494]
[1754578513827,1.7175,3821.7,3821.6,1.13664]
[1754578514032,0.6912,3821.9,3821.8,0.52321]
[1754578514324,1.7302,3821.9,3821.8,0.52321]
[1754578514721,0.2911,3821.9,3821.8,1.24021]
[1754578514920,0.2911,3821.9,3821.8,1.24981]
[1754578515922,0.2911,3821.9,3821.8,1.24021]
[1754578516225,0.3082,3822.5,3822.3,0.52314]
[1754578516429,0.66143527,3822.7,3822.3,0.52314]
[1754578516430,1.7302,3822.4,3822.3,0.84484]
[1754578516626,1.7302,3822.4,3822.3,0.52314]
[1754578517825,1.7302,3822.4,3822.3,1.21044]
[1754578518025,1.2905,3822.4,3822.3,1.24014]
[1754578518226,1.7302,3822.4,3822.3,1.24014]
[1754578518431,0.2911,3822.4,3822.3,1.24014]
[1754578518633,1.7302,3822.4,3822.3,0.52314]
[1754578519225,1.7302,3822.4,3822.3,1.23084]
[1754578519531,1.7302,3822.4,3822.3,1.15934]
[1754578519921,1.7302,3822.4,3822.3,0.52314]
[1754578520327,1.5346,3822.3,3822.2,0.52316]
[1754578520530,1.7302,3822.3,3822.2,0.52316]
[1754578520728,0.6912,3821.7,3821.6,0.0118]
[1754578520926,0.4075,3821.0,3820.9,1.23104]
[1754578521230,0.4956,3820.8,3820.7,2.87598556]
[1754578521427,1.7302,3820.8,3820.7,2.87598556]
[1754578521631,1.039,3820.4,3820.3,6.15013847]
[1754578521832,1.039,3820.4,3820.2,2.87605556]
[1754578522032,1.039,3820.3,3820.1,2.87606556]
[1754578522235,0.52337,3820.7,3820.3,0.52342]
[1754578522535,0.4397,3820.6,3820.4,0.5234]
[1754578523032,1.039,3820.5,3820.4,0.5234]
[1754578524931,1.7302,3820.5,3820.4,0.5234]
[1754578529530,1.2905,3820.3,3820.2,0.52343]
[1754578529737,1.7302,3819.5,3819.4,0.52354]
[1754578530038,1.7302,3819.0,3818.9,0.52361]
[1754578530337,1.2905,3819.0,3818.9,1.23131]
[1754578532038,1.7302,3819.0,3818.9,1.23131]
[1754578532931,0.2911,3819.5,3819.4,0.52354]
[1754578533240,0.2911,3819.5,3819.4,1.23124]
[1754578533539,0.7949,3819.5,3819.4,1.23124]
[1754578534037,0.2911,3819.5,3819.4,1.23124]
[1754578534234,0.7949,3819.5,3819.4,1.23124]
[1754578534432,0.2911,3819.5,3819.4,1.23124]
[1754578534827,0.2911,3819.5,3817.9,28.54031556]
[1754578534828,0.7867,3819.5,3817.9,2.35262556]
[1754578535032,0.9823,3819.3,3819.2,0.52356]
[1754578535237,1.7302,3819.3,3818.7,1.30908]
[1754578535435,0.6912,3818.8,3818.7,1.02074]
[1754578535741,1.4391,3818.8,3818.7,0.8307]
[1754578536038,0.52368,3818.5,3818.2,0.5237]
[1754578536233,0.3082,3818.2,3817.6,0.6158]
[1754578536431,1.039,3818.7,3817.9,0.52375]
[1754578536631,0.7308,3818.7,3817.9,0.52375]
[1754578536840,0.5237,3818.3,3817.8,0.52376]
[1754578537039,0.5993,3818.1,3817.9,0.52374]
[1754578537239,1.039,3818.0,3817.9,1.13954]
[1754578538135,1.039,3818.0,3817.9,0.52374]
[1754578540538,1.039,3818.0,3817.9,0.84554]
[1754578541142,1.039,3818.0,3817.9,1.13954]
[1754578541838,1.039,3818.0,3817.9,0.52374]
[1754578542744,1.039,3817.9,3817.8,0.52376]
[1754578543035,1.0488,3817.9,3817.8,1.16006]
[1754578543241,1.0488,3817.9,3817.8,0.52376]
[1754578543739,0.83237,3817.8,3817.1,0.3139]
[1754578543941,0.4491,3817.5,3817.2,0.52383]
[1754578544142,0.7577,3817.3,3817.2,1.16013]
[1754578544334,1.0668,3817.2,3817.1,0.52385]
[1754578544935,1.0668,3817.2,3817.1,0.84625]
[1754578545136,0.6177,3817.2,3817.1,1.16015]
[1754578545739,1.0668,3817.2,3817.1,1.16015]
[1754578546343,1.0668,3817.2,3817.1,0.84625]
[1754578546737,1.0668,3817.2,3817.1,1.16015]
[1754578547338,1.275,3817.2,3817.1,1.64965]
[1754578547545,0.3091,3817.2,3817.1,1.64965]
[1754578547740,0.5168,3817.7,3817.6,1.01329]
[1754578547944,0.9918,3818.0,3817.9,1.64955]
[1754578548150,18.651,3819.3,3818.8,0.52362]
[1754578548447,1.0668,3818.9,3818.8,0.52362]
[1754578548747,1.0668,3818.9,3818.8,1.15992]
[1754578549046,18.9596,3819.3,3819.2,0.3139]
[1754578549646,1.0668,3819.3,3819.2,0.3139]
[1754578550043,0.7582,3819.3,3819.2,0.6363]
[1754578550243,1.0668,3819.3,3819.2,0.6363]
[1754578551144,1.0668,3819.3,3819.0,0.52359]
[1754578551339,0.3091,3819.2,3819.0,0.52359]
[1754578551549,1.0668,3819.1,3819.0,0.52359]
[1754578553339,0.3086,3819.0,3818.5,0.636]
[1754578553544,1.14136,3818.6,3818.1,0.636]
[1754578553738,0.7577,3818.4,3818.3,0.52369]
[1754578553943,1.0668,3818.7,3818.2,0.5237]
[1754578554139,0.7577,3818.1,3817.9,0.84585]
[1754578554343,0.7577,3818.1,3818.0,0.636]
[1754578554846,0.52369,3818.4,3818.2,0.5237]
[1754578555052,0.7577,3818.3,3818.2,1.1597]
[1754578555347,0.7577,3818.3,3818.2,0.636]
[1754578555552,1.0668,3818.3,3818.2,0.636]
[1754578555851,1.0668,3818.2,3818.1,0.52371]
[1754578556053,1.0668,3817.8,3817.7,0.52377]
[1754578556248,0.4491,3817.5,3817.0,1.94567]
[1754578556449,0.52377,3817.8,3817.1,0.636]
[1754578556757,0.3091,3817.7,3817.6,1.15978]
[1754578557453,1.0668,3818.1,3818.0,0.52373]
[1754578557653,1.0668,3818.1,3818.0,0.3221]
[1754578557845,0.52372,3818.2,3817.9,0.52374]
[1754578558046,0.5237,3818.3,3818.0,0.52372]
[1754578558545,0.52373,3818.1,3817.9,0.52374]
[1754578558741,1.0668,3817.9,3817.8,0.52376]
[1754578558951,1.0668,3817.7,3817.2,0.3221]
[1754578559142,1.30928,3818.2,3816.6,1.3098]
[1754578559143,0.7577,3818.1,3816.6,1.3098]
[1754578559453,0.52382,3817.4,3817.0,0.52387]
[1754578559645,1.0668,3817.1,3816.9,1.26526142]
[1754578559846,1.0668,3817.0,3816.9,0.94316142]
[1754578560050,0.524,3816.1,3815.9,0.52402]
[1754578560349,1.0668,3816.0,3815.9,0.636]
[1754578560550,0.3091,3816.0,3815.9,0.636]
[1754578560757,0.3091,3816.5,3816.4,1.15994]
[1754578561058,0.7582,3817.0,3816.9,0.636]
[1754578561253,1.0668,3817.0,3816.9,0.3221]
[1754578561452,0.6177,3816.9,3816.7,0.52391]
[1754578561646,0.7577,3816.8,3816.6,0.52392]
[1754578561850,0.3086,3817.0,3816.8,0.5239]
[1754578562054,1.0668,3816.9,3816.2,0.636]
[1754578562255,0.52388,3817.0,3816.2,0.636]
[1754578562452,1.30949,3817.6,3816.2,0.636]
[1754578562653,0.52386,3817.2,3816.2,0.636]
[1754578562955,0.52385,3817.2,3816.9,0.52388]
[1754578563151,1.0668,3817.0,3816.9,0.52388]
[1754578563657,0.3091,3817.0,3816.9,1.15988]
[1754578565156,0.3091,3817.0,3816.9,0.52388]
[1754578565157,1.0668,3817.0,3816.9,0.52388]
[1754578566058,1.0668,3817.0,3816.9,0.84598]
[1754578566348,1.0668,3817.0,3816.9,1.15988]
[1754578566554,0.6177,3817.0,3816.9,1.15988]
[1754578566756,1.0668,3817.0,3816.9,1.15988]
[1754578566950,1.0668,3817.0,3816.9,0.52388]
[1754578570451,1.0668,3817.0,3816.9,1.15988]
[1754578570653,0.6177,3817.0,3816.9,1.15988]
[1754578571157,0.3091,3817.0,3816.9,1.15988]
[1754578571358,1.0668,3817.4,3817.3,0.52383]
[1754578571564,0.3091,3817.4,3817.3,0.52383]
[1754578571850,1.0668,3817.4,3817.3,0.84593]
[1754578572051,0.3091,3817.4,3817.3,1.15983]
[1754578572254,0.3091,3818.1,3817.3,0.636]
[1754578572556,1.0668,3817.9,3817.8,0.52375]
[1754578573151,0.6177,3817.9,3817.8,1.13975]
[1754578573359,1.0566,3817.9,3817.8,0.52375]
[1754578574559,0.2859,3818.3,3818.2,0.52371]
[1754578574851,0.7248,3818.3,3818.2,0.84601]
[1754578575050,0.7248,3818.3,3818.2,1.13971]
[1754578575255,1.38104431,3818.6,3818.5,0.84597]
[1754578576459,0.7248,3818.5,3818.2,0.616]
[1754578576757,1.17989431,3818.6,3818.4,0.52367]
[1754578577152,0.52365,3818.6,3818.3,0.52369]
[1754578577348,0.52368,3818.4,3818.2,0.616]
[1754578577551,0.52369,3818.4,3818.1,0.52372]
[1754578577747,0.52369,3818.4,3817.8,0.616]
[1754578577748,1.39187558,3818.6,3818.5,0.52367]
[1754578577950,1.0145,3818.6,3818.5,0.52367]
[1754578578149,0.2897,3818.5,3818.4,0.81737]
[1754578578353,1.53817,3818.5,3818.3,0.52369]
[1754578578553,0.5756,3818.3,3817.8,0.2937]
[1754578578864,0.5237,3818.3,3818.1,0.52372]
[1754578579160,0.52372,3818.1,3817.6,0.3223]
[1754578579360,0.52371,3818.2,3818.0,0.52373]
[1754578579658,0.52371,3818.2,3817.9,0.52374]
[1754578579857,1.0145,3818.1,3817.9,0.52374]
[1754578580059,1.24855,3817.9,3817.7,0.52377]
[1754578580250,1.0145,3817.8,3817.7,0.52377]
[1754578581064,0.4389,3817.7,3817.6,0.52379]
[1754578581359,0.4389,3817.7,3817.4,0.52381]
[1754578581557,1.30928,3818.3,3817.5,0.52379]
[1754578581760,0.52377,3817.8,3817.6,0.52378]
[1754578581960,1.0145,3817.6,3817.5,0.5238]
[1754578582458,1.0145,3818.0,3817.9,1.13975]
[1754578582662,0.2897,3818.0,3817.9,1.13975]
[1754578582963,1.0145,3818.3,3818.2,1.13971]
[1754578583163,1.0145,3818.3,3818.2,0.616]
[1754578583566,1.0145,3818.3,3818.0,0.52373]
[1754578583864,0.7248,3818.1,3818.0,0.52373]
[1754578584060,1.0145,3818.1,3818.0,0.52373]
[1754578584361,1.0145,3818.1,3817.5,0.9214]
[1754578584663,0.52371,3818.2,3818.0,0.52373]
[1754578584859,1.0145,3818.3,3817.3,0.616]
[1754578585059,0.2897,3818.1,3817.8,0.52375]
[1754578585257,0.7286,3818.0,3817.9,0.52374]
[1754578585461,1.0145,3818.0,3817.9,1.13974]
[1754578585765,0.2897,3818.0,3817.9,1.13974]
[1754578585966,0.2897,3818.0,3817.9,1.44514]
[1754578586656,0.7248,3818.4,3818.3,0.52369]
[1754578586855,2.61709,3820.4,3817.4,1.30954]
[1754578586856,18.9037,3818.6,3817.4,1.30954]
[1754578587056,18.9037,3818.6,3817.2,1.9256]
[1754578587057,1.30925,3818.3,3817.2,1.9256]
[1754578587362,1.0145,3817.5,3817.4,0.52381]
[1754578587767,1.0145,3817.5,3817.4,1.13981]
[1754578589062,0.2897,3817.5,3817.4,1.44521]
[1754578589270,0.7286,3817.8,3817.7,1.13978]
[1754578589571,1.0145,3817.8,3817.7,0.3223]
[1754578589771,1.6942,3817.8,3817.7,0.7126]
[1754578589966,1.2553,3817.8,3817.7,1.2897]
[1754578590468,1.73096,3817.9,3817.8,0.1997]
[1754578590668,2.21796,3817.9,3817.8,0.1997]
[1754578590868,1.6942,3817.9,3817.8,1.2897]
[1754578592172,1.2553,3817.9,3817.8,1.2897]
[1754578592372,19.5786,3818.1,3818.0,1.2897]
[1754578592670,20.3072,3818.1,3818.0,1.2897]
[1754578593172,0.2859,3818.4,3818.0,1.1211]
[1754578593370,0.2897,3818.3,3818.2,1.81341]
[1754578593673,1.6942,3818.3,3818.2,0.5237]
[1754578593875,1.6942,3818.3,3818.2,1.5197]
[1754578594172,1.6942,3818.3,3818.2,1.8134]
[1754578594373,1.6942,3818.3,3818.2,0.996]
[1754578594569,21.22543,3818.4,3816.8,1.61513]
[1754578594767,0.52384,3817.2,3817.1,0.52385]
[1754578594970,1.0145,3817.4,3816.9,0.3223]
[1754578595169,1.0145,3817.4,3816.8,0.2937]
[1754578595170,1.0145,3817.4,3817.3,0.52382]
[1754578595567,1.0145,3817.4,3817.0,0.616]
[1754578595765,1.0145,3817.3,3817.2,0.52383]
[1754578595966,1.0145,3817.3,3817.2,0.84613]
[1754578596169,0.2859,3817.2,3817.0,1.13986]
[1754578596366,1.0145,3817.1,3817.0,1.13987]
[1754578596576,0.5756,3817.1,3817.0,1.13987]
[1754578596777,1.0145,3817.1,3817.0,1.13987]
[1754578596966,1.0145,3817.1,3817.0,0.84617]
[1754578597165,1.0145,3817.1,3817.0,1.13987]
[1754578597365,1.2072,3817.1,3817.0,1.81357]
[1754578597567,1.6942,3817.1,3817.0,1.81357]
[1754578598071,1.6942,3817.1,3817.0,1.51987]
[1754578598478,1.2553,3817.1,3817.0,1.81357]
[1754578598885,1.6942,3817.1,3817.0,1.81357]
[1754578599585,0.4824,3817.5,3817.4,1.81352]
[1754578599787,0.2897,3817.5,3817.4,2.11892]
[1754578599981,18.8859,3817.8,3817.4,2.11892]
[1754578599982,1.6942,3817.8,3817.7,1.81348]
[1754578600486,1.2553,3817.8,3817.7,1.81348]
[1754578600688,1.2553,3817.8,3817.7,2.11888]
[1754578601579,0.9694,3817.8,3817.7,2.11888]
[1754578601783,0.2897,3817.8,3817.7,2.11888]
[1754578602084,18.6,3818.0,3817.9,0.71435]
[1754578602385,0.4824,3818.0,3817.9,1.81345]
[1754578602585,0.4824,3818.0,3817.9,2.11885]
[1754578603385,1.6754,3818.0,3817.9,1.81345]
[1754578603980,1.6754,3818.0,3817.9,0.52375]
[1754578604381,1.6754,3818.0,3817.9,0.72085]
[1754578604588,0.4806,3817.4,3817.3,1.82013]
[1754578604782,1.0608,3817.4,3817.3,1.82013]
[1754578605183,1.0608,3817.4,3817.3,2.10273]
[1754578605382,1.6701,3817.4,3817.3,1.82013]
[1754578605585,0.7768,3817.4,3817.3,2.10273]
[1754578605891,0.3039,3817.4,3817.3,2.10273]
[1754578606095,0.5005,3817.4,3817.3,2.10273]
[1754578606285,1.6701,3817.4,3817.3,1.82013]
[1754578606886,1.3662,3817.8,3817.7,0.91918]
[1754578607088,0.4729,3817.8,3817.7,1.82008]
[1754578607286,18.7896,3818.1,3818.0,0.91913]
[1754578607485,20.2631,3818.1,3818.0,1.82003]
[1754578607684,1.2481,3818.1,3818.0,1.82003]
[1754578607880,0.706,3818.4,3818.0,1.5789]
[1754578608090,2.33585589,3818.4,3818.3,1.81999]
[1754578608793,1.6701,3818.4,3818.3,1.81999]
[1754578609486,0.3039,3818.4,3818.3,1.81999]
[1754578609690,37.998,3818.7,3818.5,1.81997]
[1754578609691,1.91402736,3818.6,3818.5,1.81997]
[1754578609889,1.2481,3818.6,3818.5,1.81997]
[1754578610091,1.2481,3818.6,3818.4,0.52367]
[1754578610292,1.6701,3818.5,3818.4,1.81997]
[1754578610681,1.6701,3818.5,3818.4,0.52367]
[1754578610882,0.4729,3817.8,3817.7,1.00958]
[1754578611091,1.6701,3817.8,3817.7,1.00958]
[1754578611383,1.6701,3817.8,3817.7,1.49788]
[1754578611588,1.6701,3817.8,3817.7,1.82008]
[1754578611991,18.8919,3818.2,3818.1,1.82002]
[1754578612286,0.3839,3817.7,3817.6,0.3222]
[1754578612494,1.6701,3817.7,3817.6,1.04309]
[1754578612691,1.6701,3817.7,3817.6,1.53009]
[1754578612891,1.6701,3817.7,3817.6,1.82009]
[1754578613086,1.6701,3817.7,3817.6,0.52379]
[1754578613289,1.6701,3817.7,3817.6,0.91919]
[1754578613494,1.2481,3817.7,3817.6,1.82009]
[1754578613791,0.5005,3818.0,3817.9,1.82005]
[1754578613987,1.0608,3818.0,3817.9,1.82005]
[1754578614188,1.0608,3818.0,3817.7,0.52377]
[1754578614189,1.6701,3818.0,3817.7,0.52377]
[1754578614391,1.6701,3817.8,3817.7,0.52377]
[1754578614587,1.6701,3817.8,3817.5,0.52379]
[1754578614588,0.6602,3817.6,3817.5,0.52379]
[1754578614788,0.6602,3817.6,3817.1,1.91442]
[1754578614789,1.6701,3817.1,3817.0,0.91927]
[1754578614981,19.10579,3817.7,3817.5,0.5238]
[1754578615186,1.6701,3817.6,3817.5,1.4979]
[1754578615690,1.6701,3817.3,3817.2,0.52383]
[1754578615888,1.6701,3817.3,3817.2,1.82013]
[1754578616089,1.6701,3817.3,3817.2,0.52383]
[1754578616293,1.6701,3817.3,3817.2,1.04313]
[1754578616687,1.6701,3817.3,3817.2,1.82013]
[1754578616883,1.6701,3817.3,3817.2,0.52383]
[1754578617087,1.0099,3817.2,3817.0,0.52386]
[1754578617290,0.6602,3816.5,3816.4,1.82025]
[1754578617489,1.6701,3816.5,3816.4,1.82025]
[1754578617994,1.6701,3816.5,3816.4,1.53025]
[1754578618189,1.6701,3816.3,3816.2,0.52397]
[1754578618389,0.284,3816.8,3816.7,0.52391]
[1754578618598,0.6602,3816.8,3816.6,0.52392]
[1754578618796,1.3662,3816.7,3816.6,0.52392]
[1754578619096,1.6701,3816.7,3816.6,0.52392]
[1754578619591,1.6701,3816.7,3816.6,1.82022]
[1754578619592,0.9641,3816.7,3816.6,1.82022]
[1754578619790,1.6701,3816.7,3816.6,1.53022]
[1754578620001,1.6701,3816.7,3816.6,0.52392]
[1754578620191,0.7476,3816.3,3816.2,1.82028]
[1754578620406,1.6701,3816.3,3816.2,1.82028]
[1754578621084,1.6701,3816.3,3816.2,0.52398]
[1754578621690,1.6701,3816.3,3816.2,0.72108]
[1754578622592,1.6701,3816.3,3816.2,1.24258]
[1754578623595,1.6701,3816.3,3816.2,1.53258]
[1754578623893,1.6701,3816.3,3816.2,1.82128]
[1754578624604,1.2481,3816.6,3816.5,1.82124]
[1754578624798,0.20719101,3817.6,3816.5,1.82124]
[1754578624799,1.0822,3817.0,3816.9,1.49798]
[1754578625003,1.0822,3817.0,3816.9,1.82118]
[1754578625194,1.0822,3817.0,3816.9,0.72098]
[1754578625499,1.6701,3817.0,3816.9,1.82118]
[1754578625998,1.6701,3817.0,3816.9,0.52388]
[1754578626898,1.11179,3816.9,3816.2,1.30993]
[1754578627092,1.6701,3816.3,3816.2,1.24258]
[1754578627291,1.6701,3816.3,3816.2,1.82128]
[1754578627492,0.9641,3816.3,3816.2,2.10388]
[1754578627698,0.7768,3816.3,3816.2,2.10388]
[1754578628099,1.0899,3816.6,3816.5,0.52394]
[1754578628401,1.6701,3816.6,3816.5,1.53124]
[1754578629395,1.6701,3816.6,3816.5,1.82124]
[1754578630003,0.7768,3816.6,3816.5,1.82124]
[1754578630196,1.30932,3818.1,3816.0,1.31001]
[1754578630197,0.6602,3817.3,3817.2,0.52384]
[1754578630398,1.3662,3817.7,3817.6,1.01209]
[1754578630901,1.6701,3817.7,3817.6,0.1983]
[1754578631103,1.30929,3818.2,3816.7,0.52391]
[1754578631104,0.4636,3816.8,3816.7,0.52391]
[1754578631404,1.6701,3816.8,3816.7,0.72101]
[1754578631604,1.6701,3816.8,3816.7,0.52391]
[1754578632397,0.6602,3816.8,3816.1,1.30999]
[1754578632601,1.6701,3816.2,3816.1,1.82129]
[1754578633004,1.6701,3816.2,3816.1,1.20809]
[1754578633194,1.6701,3816.2,3816.1,0.52399]
[1754578633395,1.30986,3816.6,3815.3,0.3217]
[1754578633607,1.7152,3815.4,3815.2,0.52411]
[1754578633908,1.7152,3815.3,3815.2,0.52411]
[1754578634507,1.7152,3815.3,3815.2,1.03531]
[1754578634702,0.6833,3815.3,3815.0,0.52413]
[1754578634902,19.874,3816.1,3815.1,0.9857]
[1754578634903,1.7152,3815.2,3815.1,0.9857]
[1754578635105,1.7152,3815.2,3814.8,0.2914]
[1754578635306,0.6833,3815.2,3815.1,0.52413]
[1754578635504,0.6833,3815.5,3815.4,0.70788]
[1754578635709,0.6833,3815.7,3815.6,1.2771]
[1754578636004,1.7152,3815.7,3815.6,1.80115]
[1754578637601,1.7152,3815.7,3815.6,0.1895]
[1754578637796,0.6833,3815.5,3815.0,1.63207]
[1754578638000,0.6833,3815.5,3815.4,0.52409]
[1754578638001,1.7152,3815.5,3815.4,0.52409]
[1754578638207,1.7152,3815.5,3815.4,1.80119]
[1754578638508,1.2698,3815.5,3815.4,1.80119]
[1754578638709,0.2911,3815.5,3815.4,1.80119]
[1754578639008,0.2911,3815.4,3815.2,0.52411]
[1754578639197,1.7152,3815.3,3815.2,0.52411]
[1754578640006,1.7152,3815.3,3815.2,0.89741]
[1754578640205,1.7152,3815.3,3815.2,1.51051]
[1754578640406,1.7152,3815.3,3815.2,1.80121]
[1754578641609,1.7152,3815.3,3815.2,0.9857]
[1754578641809,1.7152,3815.3,3815.2,0.3733]
[1754578642317,1.7152,3815.2,3815.1,0.52413]
[1754578642502,1.7152,3815.2,3815.1,1.80123]
[1754578643911,1.7152,3815.2,3815.1,0.89743]
[1754578644408,1.7152,3815.2,3815.1,1.80123]
[1754578644815,1.2698,3815.2,3815.1,1.80123]
[1754578645008,0.7715,3815.2,3815.1,2.08323]
[1754578645404,1.7152,3815.2,3815.1,1.80123]
[1754578646304,0.9744,3815.2,3815.1,1.80123]
[1754578646506,0.2911,3815.2,3815.1,2.08323]
[1754578646804,1.7152,3814.9,3814.8,1.21917]
[1754578647010,1.31021,3815.5,3814.4,1.31055]
[1754578647011,1.7152,3814.5,3814.4,1.80133]
[1754578647200,1.7152,3814.5,3814.4,0.52423]
[1754578647404,0.2954,3814.9,3814.6,0.2914]
[1754578647611,0.2954,3814.9,3814.8,1.2771]
[1754578647612,0.4807,3814.9,3814.8,1.2771]
[1754578647812,0.9787,3814.9,3814.8,1.80127]
[1754578648109,1.7152,3814.9,3814.8,1.80127]
[1754578649914,0.2911,3814.9,3814.8,2.08327]
[1754578650217,1.4241,3815.3,3815.2,1.80122]
[1754578650416,0.9787,3815.3,3815.2,1.80122]
[1754578650716,1.2698,3815.3,3815.2,2.08322]
[1754578650917,1.2698,3815.3,3815.2,0.52412]
[1754578651215,0.4454,3815.2,3814.5,0.2914]
[1754578651411,1.7152,3815.1,3815.0,0.52414]
[1754578652008,1.2698,3815.1,3815.0,0.57504]
[1754578652212,0.2911,3815.1,3815.0,0.57504]
[1754578653313,0.7718,3815.5,3815.4,0.60189]
[1754578653513,1.2698,3815.5,3815.4,0.60189]
[1754578653820,1.7152,3815.5,3815.4,0.60189]
[1754578654017,1.7152,3815.5,3815.4,0.52409]
[1754578654313,1.7152,3815.5,3814.7,1.31045]
[1754578654314,1.2074,3815.4,3815.2,0.52411]
[1754578654519,1.7152,3815.3,3815.2,0.52411]
[1754578654916,1.7152,3815.3,3815.2,0.53051]
[1754578655316,1.7152,3815.3,3815.2,0.60191]
[1754578655517,1.2698,3815.3,3815.2,0.60191]
[1754578655819,0.2911,3815.3,3815.2,0.60191]
[1754578656020,0.2911,3815.3,3815.2,0.60591]
[1754578657618,0.2911,3815.3,3815.2,0.60191]
[1754578658521,1.0669,3815.7,3815.6,0.57496]
[1754578658723,1.7152,3815.7,3815.6,0.57496]
[1754578659222,1.7152,3815.7,3815.6,0.52406]
[1754578659520,1.7152,3815.7,3815.6,0.60186]
[1754578660514,1.7152,3815.7,3815.6,0.57496]
[1754578661018,1.7152,3815.7,3815.6,0.60186]
[1754578661917,0.9787,3816.2,3816.1,0.52399]
[1754578662118,0.9787,3816.2,3816.1,0.60179]
[1754578662324,1.129,3816.4,3816.3,0.52396]
[1754578662515,0.2911,3816.2,3816.1,0.52399]
[1754578662716,1.4241,3816.2,3816.1,0.52399]
[1754578662924,1.7152,3816.2,3816.1,0.52399]
[1754578663319,1.3907,3816.6,3816.5,0.52393]
[1754578663519,1.6827,3816.5,3816.4,0.52394]
[1754578664021,0.4294,3816.4,3816.2,0.52397]
[1754578664227,1.6827,3816.2,3816.1,0.52398]
[1754578664523,0.2945,3816.2,3816.1,0.58388]
[1754578664722,0.4294,3816.5,3816.1,0.0982]
[1754578664923,0.2945,3816.5,3816.4,0.62215]
[1754578665130,0.2945,3816.9,3816.8,0.6148]
[1754578665429,1.2533,3816.9,3816.8,0.6148]
[1754578665628,0.7737,3816.9,3816.8,0.6148]
[1754578665823,0.2945,3816.9,3816.8,0.6148]
[1754578666328,0.2945,3816.9,3816.8,0.6221]
[1754578666536,1.6827,3817.4,3817.3,0.61473]
[1754578667023,1.6827,3817.4,3817.3,0.53543]
[1754578667224,1.6827,3817.4,3817.3,0.52383]
[1754578667525,0.6668,3817.4,3817.2,0.52384]
[1754578667724,1.6827,3817.3,3817.2,0.52384]
[1754578668731,1.6827,3817.3,3817.2,0.61474]
[1754578669338,2.99927215,3818.0,3817.8,0.52375]
[1754578669538,0.9588,3817.8,3817.7,0.52377]
[1754578669936,0.6668,3817.6,3817.5,0.5238]
[1754578670138,1.3882,3817.5,3817.4,0.52381]
[1754578670438,0.6668,3817.0,3816.9,0.52388]